[Event "Juniorallsvenskan 2019, Division 1 and 2"]
[Site "Molnlycke kulturhus, Biblioteksgatan 2, Molnlycke, Sweden"]
[Date "2019.11.23"]
[Round "2.3"]
[White "Carlsson, Ludvig"]
[Black "Olsson, William"]
[Result "1/2-1/2"]
[TimeControl "90 minutes + 30 seconds per move from move one"]
[WhiteTitle "CM"]
[WhiteFideId "1727010"]
[BlackFideId "1741721"]
[WhiteElo "2146"]
[BlackElo "2035"]

1. e4 {[%clk 01:30:55]} {[%emt 00:00:04]} c5 {[%clk 01:30:56]} {[%emt
00:00:05]} 2. Nc3 {[%clk 01:31:12]} {[%emt 00:00:12]} Nc6 {[%clk 01:31:23]}
{[%emt 00:00:05]} 3. Nge2 {[%clk 01:29:43]} {[%emt 00:01:58]} g6 {[%clk
01:31:23]} {[%emt 00:00:31]} 4. d4 {[%clk 01:29:54]} {[%emt 00:00:18]} cxd4
{[%clk 01:31:51]} {[%emt 00:00:03]} 5. Nxd4 {[%clk 01:30:13]} {[%emt 00:00:11]}
Bg7 {[%clk 01:32:17]} {[%emt 00:00:04]} 6. Nb3 {[%clk 01:30:16]} {[%emt
00:00:26]} Nf6 {[%clk 01:32:24]} {[%emt 00:00:23]} 7. Be2 {[%clk 01:30:35]}
{[%emt 00:00:10]} O-O {[%clk 01:32:44]} {[%emt 00:00:11]} 8. O-O {[%clk
01:30:56]} {[%emt 00:00:08]} d6 {[%clk 01:32:27]} {[%emt 00:00:48]} 9. Bg5
{[%clk 01:30:02]} {[%emt 00:01:22]} Be6 {[%clk 01:29:27]} {[%emt 00:03:31]} 10.
Re1 {[%clk 01:28:50]} {[%emt 00:01:40]} a6 {[%clk 01:27:29]} {[%emt 00:02:31]}
11. Bf1 {[%clk 01:23:43]} {[%emt 00:05:34]} Rc8 {[%clk 01:23:39]} {[%emt
00:04:22]} 12. Nd5 {[%clk 01:20:46]} {[%emt 00:03:27]} Nd7 {[%clk 01:21:14]}
{[%emt 00:02:55]} 13. c3 {[%clk 01:20:52]} {[%emt 00:00:23]} Re8 {[%clk
01:18:46]} {[%emt 00:03:00]} 14. Nf4 {[%clk 01:09:13]} {[%emt 00:12:09]} Nf8
{[%clk 01:17:23]} {[%emt 00:01:52]} 15. Nxe6 {[%clk 01:02:54]} {[%emt
00:06:49]} Nxe6 {[%clk 01:17:40]} {[%emt 00:00:14]} 16. Be3 {[%clk 01:03:07]}
{[%emt 00:00:16]} Ne5 {[%clk 01:14:04]} {[%emt 00:04:06]} 17. a4 {[%clk
01:02:45]} {[%emt 00:00:52]} Qc7 {[%clk 01:07:56]} {[%emt 00:06:39]} 18. a5
{[%clk 00:53:59]} {[%emt 00:09:16]} Nc5 {[%clk 01:00:33]} {[%emt 00:07:54]} 19.
Nxc5 {[%clk 00:45:49]} {[%emt 00:08:40]} dxc5 {[%clk 01:00:58]} {[%emt
00:00:05]} 20. f3 {[%clk 00:46:09]} {[%emt 00:00:09]} h5 {[%clk 00:56:11]}
{[%emt 00:05:18]} 21. Qa4 {[%clk 00:40:17]} {[%emt 00:06:21]} e6 {[%clk
00:47:06]} {[%emt 00:09:36]} 22. Red1 {[%clk 00:37:00]} {[%emt 00:03:45]} Bf8
{[%clk 00:46:18]} {[%emt 00:01:19]} 23. b3 {[%clk 00:35:14]} {[%emt 00:02:15]}
Bd6 {[%clk 00:44:13]} {[%emt 00:02:36]} 24. Kh1 {[%clk 00:35:22]} {[%emt
00:00:21]} Nc6 {[%clk 00:42:33]} {[%emt 00:02:12]} 25. Bg1 {[%clk 00:34:21]}
{[%emt 00:01:29]} Kg7 {[%clk 00:36:59]} {[%emt 00:06:05]} 26. Rd3 {[%clk
00:31:44]} {[%emt 00:03:07]} Red8 {[%clk 00:32:17]} {[%emt 00:05:13]} 27. Rad1
{[%clk 00:28:22]} {[%emt 00:03:50]} Qe7 {[%clk 00:29:22]} {[%emt 00:03:26]} 28.
R3d2 {[%clk 00:24:54]} {[%emt 00:03:58]} Bc7 {[%clk 00:25:26]} {[%emt
00:04:26]} 29. Rxd8 {[%clk 00:24:40]} {[%emt 00:00:44]} Rxd8 {[%clk 00:25:50]}
{[%emt 00:00:06]} 30. Rxd8 {[%clk 00:24:56]} {[%emt 00:00:13]} Qxd8 {[%clk
00:25:27]} {[%emt 00:00:54]} 31. b4 {[%clk 00:23:50]} {[%emt 00:01:36]} cxb4
{[%clk 00:19:43]} {[%emt 00:06:13]} 32. cxb4 {[%clk 00:24:01]} {[%emt
00:00:16]} Qd6 {[%clk 00:19:47]} {[%emt 00:00:28]} 33. Qa1+ {[%clk 00:16:15]}
{[%emt 00:08:17]} Kg8 {[%clk 00:19:33]} {[%emt 00:00:44]} 34. b5 {[%clk
00:16:35]} {[%emt 00:00:10]} axb5 {[%clk 00:19:51]} {[%emt 00:00:12]} 35. a6
{[%clk 00:15:36]} {[%emt 00:01:28]} bxa6 {[%clk 00:19:17]} {[%emt 00:01:05]} 36.
Qxa6 {[%clk 00:15:59]} {[%emt 00:00:07]} b4 {[%clk 00:18:23]} {[%emt 00:01:24]}
37. Bb5 {[%clk 00:15:12]} {[%emt 00:01:17]} Na5 {[%clk 00:15:17]} {[%emt
00:03:37]} 38. Qxd6 {[%clk 00:13:14]} {[%emt 00:02:27]} Bxd6 {[%clk 00:15:36]}
{[%emt 00:00:11]} 39. Bb6 {[%clk 00:13:39]} {[%emt 00:00:06]} Nb3 {[%clk
00:15:11]} {[%emt 00:00:45]} 40. Bc4 {[%clk 00:11:51]} {[%emt 00:02:27]} Nd2
{[%clk 00:11:41]} {[%emt 00:04:00]} 41. Bd3 {[%clk 00:12:18]} {[%emt 00:00:02]}
Be5 {[%clk 00:08:43]} {[%emt 00:03:29]} 42. Kg1 {[%clk 00:09:25]} {[%emt
00:03:23]} Bc3 {[%clk 00:06:42]} {[%emt 00:02:32]} 43. Kf2 {[%clk 00:09:29]}
{[%emt 00:00:26]} b3 {[%clk 00:06:46]} {[%emt 00:00:27]} 44. Be3 {[%clk
00:09:50]} {[%emt 00:00:08]} b2 {[%clk 00:07:11]} {[%emt 00:00:06]} 45. Bxd2
{[%clk 00:10:13]} {[%emt 00:00:06]} Bxd2 {[%clk 00:07:38]} {[%emt 00:00:03]} 46.
Ke2 {[%clk 00:09:42]} {[%emt 00:01:02]} Bc3 {[%clk 00:07:41]} {[%emt 00:00:27]}
47. f4 {[%clk 00:09:53]} {[%emt 00:00:18]} Kg7 {[%clk 00:06:20]} {[%emt
00:01:51]} 48. e5 {[%clk 00:07:27]} {[%emt 00:02:56]} f6 {[%clk 00:06:01]}
{[%emt 00:00:49]} 49. exf6+ {[%clk 00:07:46]} {[%emt 00:00:11]} Kxf6 {[%clk
00:05:47]} {[%emt 00:00:44]} 50. h4 {[%clk 00:07:54]} {[%emt 00:00:21]} e5
{[%clk 00:05:44]} {[%emt 00:00:35]} 51. fxe5+ {[%clk 00:08:17]} {[%emt
00:00:07]} Bxe5 {[%clk 00:06:04]} {[%emt 00:00:10]} 52. Kf3 {[%clk 00:08:40]}
{[%emt 00:00:06]} Bc3 {[%clk 00:05:40]} {[%emt 00:00:54]} 53. g3 {[%clk
00:08:58]} {[%emt 00:00:12]} g5 {[%clk 00:04:32]} {[%emt 00:01:38]} 54. hxg5+
{[%clk 00:09:23]} {[%emt 00:00:04]} Kxg5 {[%clk 00:04:56]} {[%emt 00:00:06]} 55.
Kg2 {[%clk 00:09:48]} {[%emt 00:00:05]} Be5 {[%clk 00:04:23]} {[%emt 00:01:03]}
56. Kh1 {[%clk 00:10:09]} {[%emt 00:00:09]} Bxg3 {[%clk 00:04:40]} {[%emt
00:00:13]} 57. Bc2 {[%clk 00:10:35]} {[%emt 00:00:04]} Kf4 {[%clk 00:04:55]}
{[%emt 00:00:16]} 58. Bb1 {[%clk 00:10:59]} {[%emt 00:00:06]} Ke3 {[%clk
00:05:14]} {[%emt 00:00:11]} 59. Bc2 {[%clk 00:11:24]} {[%emt 00:00:04]} Kd2
{[%clk 00:05:20]} {[%emt 00:00:25]} 60. Bh7 {[%clk 00:11:48]} {[%emt 00:00:06]}
h4 {[%clk 00:05:40]} {[%emt 00:00:10]} 61. Bg6 {[%clk 00:11:11]} {[%emt
00:01:06]} Kc1 {[%clk 00:05:53]} {[%emt 00:00:18]} 62. Be4 {[%clk 00:11:07]}
{[%emt 00:00:34]} h3 {[%clk 00:06:10]} {[%emt 00:00:13]} 63. Bf5 {[%clk
00:11:20]} {[%emt 00:00:17]} b1=Q {[%clk 00:05:46]} {[%emt 00:00:54]} 1/2-1/2

[Event "Juniorallsvenskan 2019, Division 1 and 2"]
[Site "Molnlycke kulturhus, Biblioteksgatan 2, Molnlycke, Sweden"]
[Date "2019.11.23"]
[Round "2.4"]
[White "Aira, Leonardo"]
[Black "Emmoth, Alfons"]
[Result "0-1"]
[TimeControl "90 minutes + 30 seconds per move from move one"]
[WhiteFideId "1721097"]
[BlackFideId "1718266"]
[WhiteElo "1955"]
[BlackElo "2066"]

1. e4 {[%clk 01:30:54]} b6 {[%clk 01:30:56]} {[%emt 00:11:02]} 2. d4 {[%clk
01:29:54]} Bb7 {[%clk 01:31:21]} {[%emt 00:01:35]} 3. Nc3 {[%clk 01:29:22]} e6
{[%clk 01:31:39]} {[%emt 00:01:14]} 4. Bd3 {[%clk 01:26:48]} Nf6 {[%clk
01:31:14]} {[%emt 00:04:00]} 5. Nge2 {[%clk 01:26:10]} d6 {[%clk 01:29:54]}
{[%emt 00:02:57]} 6. Bg5 {[%clk 01:19:34]} Be7 {[%clk 01:27:39]} {[%emt
00:09:51]} 7. O-O {[%clk 01:10:06]} Nbd7 {[%clk 01:25:05]} {[%emt 00:13:02]} 8.
f4 {[%clk 00:51:26]} O-O {[%clk 01:17:44]} {[%emt 00:27:01]} 9. Ng3 {[%clk
00:42:22]} h6 {[%clk 01:08:31]} {[%emt 00:19:18]} 10. Bxf6 {[%clk 00:41:11]}
Nxf6 {[%clk 01:05:50]} {[%emt 00:04:51]} 11. Nh5 {[%clk 00:34:37]} c5 {[%clk
00:55:53]} {[%emt 00:17:30]} 12. dxc5 {[%emt 00:14:50]} bxc5 {[%clk 00:54:11]}
{[%emt 00:00:21]} 13. Kh1 {[%clk 00:18:43]} {[%emt 00:03:55]} c4 {[%clk
00:47:22]} {[%emt 00:07:19]} 14. Nxf6+ {[%clk 00:10:44]} {[%emt 00:08:30]} Bxf6
{[%clk 00:46:16]} {[%emt 00:01:36]} 15. Bxc4 {[%clk 00:11:02]} {[%emt
00:00:12]} Bxc3 {[%clk 00:46:31]} {[%emt 00:00:14]} 16. bxc3 {[%clk 00:11:27]}
{[%emt 00:00:05]} Bxe4 {[%clk 00:46:55]} {[%emt 00:00:07]} 17. Qe2 {[%clk
00:11:17]} {[%emt 00:00:39]} d5 {[%clk 00:45:18]} {[%emt 00:02:08]} 18. Bd3
{[%clk 00:11:27]} {[%emt 00:00:20]} Bxd3 {[%clk 00:41:46]} {[%emt 00:04:02]} 19.
cxd3 {[%clk 00:11:49]} {[%emt 00:00:08]} Rc8 {[%clk 00:41:17]} {[%emt
00:00:59]} 20. Qe5 {[%clk 00:10:02]} {[%emt 00:02:17]} Qa5 {[%clk 00:39:38]}
{[%emt 00:02:08]} 21. c4 {[%clk 00:08:46]} {[%emt 00:01:47]} Rc5 {[%clk
00:38:16]} {[%emt 00:01:52]} 22. Qd4 {[%clk 00:06:29]} {[%emt 00:02:47]} Rd8
{[%clk 00:32:41]} {[%emt 00:06:05]} 23. cxd5 {[%clk 00:05:14]} {[%emt
00:01:45]} Rcxd5 {[%clk 00:32:47]} {[%emt 00:00:24]} 24. Qe4 {[%clk 00:05:31]}
{[%emt 00:00:13]} Rxd3 {[%clk 00:31:52]} {[%emt 00:01:24]} 25. f5 {[%clk
00:04:50]} {[%emt 00:01:12]} exf5 {[%clk 00:26:03]} {[%emt 00:06:19]} 26. Qxf5
{[%clk 00:04:49]} {[%emt 00:00:31]} Qxf5 {[%clk 00:26:04]} {[%emt 00:00:29]} 27.
Rxf5 {[%clk 00:05:09]} {[%emt 00:00:11]} Rd1+ {[%clk 00:26:32]} {[%emt
00:00:02]} 28. Rf1 {[%clk 00:05:31]} {[%emt 00:00:08]} Rxa1 {[%clk 00:26:21]}
{[%emt 00:00:41]} 29. Rxa1 {[%clk 00:05:54]} {[%emt 00:00:08]} Rd2 {[%clk
00:26:43]} {[%emt 00:00:08]} 30. a4 {[%clk 00:06:05]} {[%emt 00:00:19]} a5
{[%clk 00:25:48]} {[%emt 00:01:25]} 31. Kg1 {[%clk 00:05:48]} {[%emt 00:00:46]}
Kf8 {[%clk 00:25:07]} {[%emt 00:01:11]} 32. Rb1 {[%clk 00:03:43]} {[%emt
00:02:35]} Rd5 {[%clk 00:19:59]} {[%emt 00:05:39]} 33. Rb8+ {[%clk 00:02:50]}
{[%emt 00:01:22]} Ke7 {[%clk 00:20:02]} {[%emt 00:00:28]} 34. Rb7+ {[%clk
00:02:58]} {[%emt 00:00:22]} Ke6 {[%clk 00:19:58]} {[%emt 00:00:34]} 35. Rb6+
{[%clk 00:02:44]} {[%emt 00:00:44]} Kf5 {[%clk 00:19:14]} {[%emt 00:01:14]} 36.
Rb7 {[%clk 00:02:19]} {[%emt 00:00:55]} Kg6 {[%clk 00:19:32]} {[%emt 00:00:12]}
37. Rb6+ {[%clk 00:02:17]} {[%emt 00:00:32]} f6 {[%clk 00:18:17]} {[%emt
00:01:45]} 38. Rb5 {[%clk 00:01:29]} {[%emt 00:01:18]} Re5 {[%clk 00:15:40]}
{[%emt 00:03:07]} 39. h3 {[%clk 00:00:38]} {[%emt 00:01:22]} h5 {[%clk
00:14:35]} {[%emt 00:01:35]} 40. Kh2 {[%clk 00:00:40]} {[%emt 00:00:27]} Kf5
{[%clk 00:13:13]} {[%emt 00:01:52]} 41. Rb7 {[%clk 00:00:53]} {[%emt 00:00:17]}
g6 {[%clk 00:12:02]} {[%emt 00:01:41]} 42. Rb6 {[%clk 00:00:37]} {[%emt
00:00:46]} h4 {[%clk 00:09:08]} {[%emt 00:03:23]} 43. Ra6 {[%clk 00:00:40]}
{[%emt 00:00:27]} Kg5 {[%clk 00:08:53]} {[%emt 00:00:46]} 44. Kg1 {[%clk
00:00:53]} {[%emt 00:00:16]} Rf5 {[%clk 00:08:59]} {[%emt 00:00:24]} 45. Ra8
{[%clk 00:00:55]} {[%emt 00:00:28]} Kf4 {[%clk 00:07:23]} {[%emt 00:02:07]} 46.
Rc8 {[%clk 00:00:34]} {[%emt 00:00:51]} Ke3 {[%clk 00:07:11]} {[%emt 00:00:42]}
47. Ra8 {[%clk 00:00:32]} {[%emt 00:00:31]} Kd3 {[%clk 00:06:57]} {[%emt
00:00:43]} 48. Rg8 {[%clk 00:00:31]} {[%emt 00:00:31]} g5 {[%clk 00:07:09]}
{[%emt 00:00:18]} 49. Ra8 {[%clk 00:00:36]} {[%emt 00:00:25]} Kc3 {[%clk
00:07:18]} {[%emt 00:00:22]} 50. g3 {[%clk 00:00:39]} {[%emt 00:00:27]} hxg3
{[%clk 00:07:13]} {[%emt 00:00:35]} 51. Kg2 {[%clk 00:01:03]} {[%emt 00:00:06]}
Kb4 {[%clk 00:07:08]} {[%emt 00:00:34]} 52. Kxg3 {[%clk 00:01:06]} {[%emt
00:00:28]} Rf4 {[%clk 00:07:13]} {[%emt 00:00:26]} 53. Rf8 {[%clk 00:01:03]}
{[%emt 00:00:33]} Kxa4 {[%clk 00:06:52]} {[%emt 00:00:51]} 54. h4 {[%clk
00:01:11]} {[%emt 00:00:22]} Rxh4 {[%clk 00:07:15]} {[%emt 00:00:08]} 55. Rxf6
{[%clk 00:01:34]} {[%emt 00:00:07]} Rc4 {[%clk 00:07:38]} {[%emt 00:00:05]} 56.
Rf5 {[%clk 00:01:30]} {[%emt 00:00:35]} g4 {[%clk 00:08:00]} {[%emt 00:00:08]}
57. Rf8 {[%clk 00:00:56]} {[%emt 00:01:03]} Kb3 {[%clk 00:08:24]} {[%emt
00:00:07]} 0-1

[Event "Juniorallsvenskan 2019, Division 1 and 2"]
[Site "Molnlycke kulturhus, Biblioteksgatan 2, Molnlycke, Sweden"]
[Date "2019.11.23"]
[Round "2.5"]
[White "Jogstad, Martin"]
[Black "Storme, Isak"]
[Result "1-0"]
[TimeControl "90 minutes + 30 seconds per move from move one"]
[WhiteTitle "FM"]
[BlackTitle "FM"]
[WhiteFideId "1715364"]
[BlackFideId "1728113"]
[WhiteElo "2305"]
[BlackElo "2229"]

1. d4 {[%clk 01:30:58]} {[%emt 00:00:01]} d5 {[%clk 01:30:55]} {[%emt
00:00:06]} 2. c4 {[%clk 01:31:23]} {[%emt 00:00:05]} e6 {[%clk 01:31:20]}
{[%emt 00:00:05]} 3. Nf3 {[%clk 01:31:50]} {[%emt 00:00:03]} c6 {[%clk
01:31:46]} {[%emt 00:00:05]} 4. e3 {[%clk 01:32:15]} {[%emt 00:00:04]} Nf6
{[%clk 01:31:54]} {[%emt 00:00:22]} 5. Nc3 {[%clk 01:32:24]} {[%emt 00:00:21]}
Nbd7 {[%clk 01:32:04]} {[%emt 00:00:20]} 6. Qc2 {[%clk 01:32:48]} {[%emt
00:00:07]} Bd6 {[%clk 01:32:24]} {[%emt 00:00:11]} 7. Bd3 {[%clk 01:33:11]}
{[%emt 00:00:07]} O-O {[%clk 01:32:12]} {[%emt 00:00:42]} 8. O-O {[%clk
01:33:28]} {[%emt 00:00:11]} e5 {[%clk 01:29:08]} {[%emt 00:03:35]} 9. cxd5
{[%clk 01:33:45]} {[%emt 00:00:13]} cxd5 {[%clk 01:29:30]} {[%emt 00:00:09]} 10.
e4 {[%clk 01:34:04]} {[%emt 00:00:10]} exd4 {[%clk 01:27:25]} {[%emt 00:02:34]}
11. Nxd5 {[%clk 01:34:18]} {[%emt 00:00:17]} Nxd5 {[%clk 01:24:37]} {[%emt
00:03:17]} 12. exd5 {[%clk 01:34:45]} {[%emt 00:00:03]} h6 {[%clk 01:23:29]}
{[%emt 00:01:38]} 13. Nxd4 {[%clk 01:31:59]} {[%emt 00:03:16]} Qh4 {[%clk
01:19:03]} {[%emt 00:04:56]} 14. Nf3 {[%clk 01:31:13]} {[%emt 00:01:17]} Qh5
{[%clk 01:19:14]} {[%emt 00:00:18]} 15. Bh7+ {[%clk 01:31:37]} {[%emt
00:00:07]} Kh8 {[%clk 01:19:32]} {[%emt 00:00:12]} 16. Qf5 {[%clk 01:31:46]}
{[%emt 00:00:20]} Qxf5 {[%clk 01:15:12]} {[%emt 00:04:51]} 17. Bxf5 {[%clk
01:32:09]} {[%emt 00:00:07]} Nf6 {[%clk 01:12:33]} {[%emt 00:03:08]} 18. Bxc8
{[%clk 01:32:25]} {[%emt 00:00:15]} Rfxc8 {[%clk 00:59:34]} {[%emt 00:13:28]}
19. Be3 {[%clk 01:32:36]} {[%emt 00:00:19]} Nxd5 {[%clk 00:57:45]} {[%emt
00:02:19]} 20. Rfd1 {[%clk 01:30:22]} {[%emt 00:02:45]} Nxe3 {[%clk 00:57:16]}
{[%emt 00:00:59]} 21. Rxd6 {[%clk 01:30:41]} {[%emt 00:00:10]} Nc2 {[%clk
00:52:46]} {[%emt 00:04:59]} 22. Rad1 {[%clk 01:27:57]} {[%emt 00:03:13]} Nb4
{[%clk 00:44:25]} {[%emt 00:08:52]} 23. Rd7 {[%clk 01:28:04]} {[%emt 00:00:23]}
Nxa2 {[%clk 00:43:36]} {[%emt 00:01:20]} 24. Ne5 {[%clk 01:00:05]} {[%emt
00:28:28]} b5 {[%clk 00:40:09]} {[%emt 00:03:57]} 25. Nxf7+ {[%clk 01:00:14]}
{[%emt 00:00:20]} Kg8 {[%clk 00:34:10]} {[%emt 00:06:29]} 26. Nd6 {[%clk
00:59:33]} {[%emt 00:01:11]} Rc5 {[%clk 00:33:19]} {[%emt 00:01:21]} 27. g4
{[%clk 00:59:11]} {[%emt 00:00:52]} a5 {[%clk 00:31:16]} {[%emt 00:02:33]} 28.
Nf5 {[%clk 00:54:28]} {[%emt 00:05:13]} Kh8 {[%clk 00:31:19]} {[%emt 00:00:26]}
29. Rb7 {[%clk 00:49:49]} {[%emt 00:05:11]} h5 {[%clk 00:27:01]} {[%emt
00:04:48]} 30. h3 {[%clk 00:48:12]} {[%emt 00:02:07]} hxg4 {[%clk 00:22:35]}
{[%emt 00:04:56]} 31. hxg4 {[%clk 00:47:23]} {[%emt 00:01:19]} Rc4 {[%clk
00:22:42]} {[%emt 00:00:23]} 32. f3 {[%clk 00:40:45]} {[%emt 00:07:08]} Rc2
{[%clk 00:21:48]} {[%emt 00:01:24]} 33. Nxg7 {[%clk 00:29:03]} {[%emt
00:12:13]} Rxb2 {[%clk 00:15:30]} {[%emt 00:06:47]} 34. Nh5 {[%clk 00:28:56]}
{[%emt 00:00:37]} Nc3 {[%clk 00:09:41]} {[%emt 00:06:19]} 35. Nf6 {[%clk
00:24:30]} {[%emt 00:04:56]} Ne2+ {[%clk 00:09:52]} {[%emt 00:00:19]} 36. Kf2
{[%clk 00:24:25]} {[%emt 00:00:35]} Nf4+ {[%clk 00:09:36]} {[%emt 00:00:46]} 37.
Kg3 {[%clk 00:24:34]} {[%emt 00:00:21]} 1-0